[Event "44th Chess Olympiad Open 2022"]
[Site "Chennai"]
[Date "2022.08.09"]
[Round "11.32"]
[White "Ferreira, Jorge Viterbo"]
[Black "Guzman, Christopher"]
[Result "1/2-1/2"]
[ECO "A14"]
[WhiteElo "2499"]
[BlackElo "2243"]
[Annotator "RC"]
[PlyCount "77"]
[EventDate "2022.07.29"]
[EventType "team-tourn"]
[EventCountry "IND"]
[SourceTitle "playchess.com"]
[Source "ChessBase"]
[SourceQuality "1"]
[WhiteTeam "Portugal"]
[BlackTeam "Dominican Republic"]
[WhiteTeamCountry "POR"]
[BlackTeamCountry "DOM"]
[TimeControl "40/5400+30:1800+30"]

1. c4 {[%emt 0:00:02]} Nf6 {[%emt 0:01:04]} 2. g3 {[%emt 0:00:07]} e6 {[%emt 0:01:17]} 3. Bg2 {[%emt 0:00:09]} d5 {[%emt 0:00:09]} 4. Nf3 {[%emt 0:00:06]} Be7 {[%emt 0:02:40]} 5. O-O {[%emt 0:00:09]} O-O {[%emt 0:00:06]} 6. b3 {[%emt 0:00:11]} a5 {[%emt 0:00:02]} 7. Nc3 {[%emt 0:00:16]} b6 {[%emt 0:05:20]} 8. Bb2 {[%emt 0:00:29]} Bb7 {[%emt 0:00:10]} 9. Rc1 {[%emt 0:02:13]} c5 {[%emt 0:05:40]} 10. e3 {[%emt 0:08:16]} Nbd7 {[%emt 0:12:17]} 11. d3 {[%emt 0:01:10]} Rc8 {[%emt 0:00:39]} 12. Qe2 {[%emt 0:03:04]} Qc7 {[%emt 0:00:59]} 13. Rfd1 {[%emt 0:00:59]} Rfd8 {[%emt 0:00:23]} 14. cxd5 {[%emt 0:06:48]} Nxd5 {[%emt 0:15:11]} 15. Nb5 {[%emt 0:06:00]} Qb8 {[%emt 0:00:23]} 16. d4 {[%emt 0:00:47]} cxd4 {[%emt 0:02:40]} 17. Rxc8 {[%emt 0:02:37]} Qxc8 {[%emt 0:03:42]} 18. Nfxd4 {[%emt 0:01:04]} Nc5 {[%emt 0:01:12]} 19. h4 {[%emt 0:20:04]} h6 {[%emt 0:05:26]} 20. Ba1 {[%emt 0:10:02]} Nf6 {[%emt 0:03:51]} 21. Na7 {[%emt 0:01:04]} Qc7 {[%emt 0:03:26]} 22. Nac6 {[%emt 0:01:33]} Bxc6 {[%emt 0:01:51]} 23. Nxc6 {[%emt 0:00:24]} Rxd1+ {[%emt 0:00:18]} 24. Qxd1 {[%emt 0:00:06]} Bd6 {[%emt 0:05:29]} 25. a3 {[%emt 0:04:28]} Nce4 {[%emt 0:07:05]} 26. Qc2 {[%emt 0:02:59]} Nc5 {[%emt 0:07:58]} 27. Bb2 {[%emt 0:07:20]} Nd5 {[%emt 0:04:38]} 28. Nd4 {[%emt 0:01:05]} Bxg3 {[%emt 0:03:35]} 29. Bxd5 {[%emt 0:12:30]} exd5 {[%emt 0:02:10]} 30. fxg3 {[%emt 0:00:27]} Qxg3+ {[%emt 0:00:09]} 31. Kf1 {[%emt 0:01:38]} Qxe3 {[%emt 0:00:27]} 32. Qe2 {[%emt 0:02:45]} Qh3+ {[%emt 0:01:50]} 33. Qg2 {[%emt 0:00:19]} Qd3+ {[%emt 0:01:45]} 34. Kg1 {[%emt 0:02:14]} Qe3+ {[%emt 0:01:28]} 35. Kh2 {[%emt 0:00:10]} Qf4+ {[%emt 0:00:15]} 36. Qg3 {[%emt 0:01:22]} Qd2+ {[%emt 0:00:12]} 37. Qg2 {[%emt 0:00:11]} Qf4+ {[%emt 0:00:01]} 38. Qg3 {[%emt 0:03:01]} Qd2+ {[%emt 0:00:09]} 39. Qg2 {[%emt 0:00:04]} 1/2-1/2

[Event "44th Chess Olympiad Open 2022"]
[Site "Chennai"]
[Date "2022.08.09"]
[Round "11.32"]
[White "Veiga, Jose Francisco R P N"]
[Black "Camacho Campusano, David Daniel"]
[Result "1-0"]
[ECO "C70"]
[WhiteElo "2378"]
[BlackElo "2221"]
[Annotator "RC"]
[PlyCount "59"]
[EventDate "2022.07.29"]
[EventType "team-tourn"]
[EventCountry "IND"]
[SourceTitle "playchess.com"]
[Source "ChessBase"]
[SourceQuality "1"]
[WhiteTeam "Portugal"]
[BlackTeam "Dominican Republic"]
[WhiteTeamCountry "POR"]
[BlackTeamCountry "DOM"]
[TimeControl "40/5400+30:1800+30"]

1. e4 {[%emt 0:00:02]} e5 {[%emt 0:00:25]} 2. Nf3 {[%emt 0:00:07]} Nc6 {[%emt 0:00:01]} 3. Bb5 {[%emt 0:00:08]} a6 {[%emt 0:00:16]} 4. Ba4 {[%emt 0:00:05]} f5 {[%emt 0:01:04]} 5. d4 {[%emt 0:02:02]} fxe4 {[%emt 0:03:13]} 6. Nxe5 {[%emt 0:00:09]} Nf6 {[%emt 0:00:53]} 7. O-O {[%emt 0:01:47]} Bd6 {[%emt 0:04:26]} 8. f4 {[%emt 0:04:34]} exf3 {[%emt 0:04:49]} 9. Nxf3 {[%emt 0:00:25]} O-O {[%emt 0:00:32]} 10. c4 {[%emt 0:02:50]} Be7 {[%emt 0:07:22]} 11. d5 {[%emt 0:03:15]} Bc5+ {[%emt 0:01:11]} 12. Kh1 {[%emt 0:01:04]} Ne7 {[%emt 0:00:39]} 13. Nc3 {[%emt 0:01:01]} d6 {[%emt 0:03:05]} 14. Bd2 {[%emt 0:10:49]} Bg4 {[%emt 0:09:57]} 15. Qe1 {[%emt 0:02:38]} Bxf3 {[%emt 0:05:50]} 16. Rxf3 {[%emt 0:02:00]} Ng6 {[%emt 0:03:33]} 17. Qe6+ {[%emt 0:04:01]} Kh8 {[%emt 0:01:19]} 18. Raf1 {[%emt 0:01:09]} Bd4 {[%emt 0:10:31]} 19. Bc2 {[%emt 0:09:43]} Qe8 {[%emt 0:01:44]} 20. Qh3 {[%emt 0:02:10]} Kg8 {[%emt 0:05:01]} 21. Bf5 {[%emt 0:01:55]} b5 {[%emt 0:04:12]} 22. Re1 {[%emt 0:02:26]} Be5 {[%emt 0:01:06]} 23. Ne4 {[%emt 0:08:09]} Nxe4 {[%emt 0:07:02]} 24. Rxe4 {[%emt 0:00:15]} bxc4 {[%emt 0:13:36]} 25. Be6+ {[%emt 0:00:36]} Kh8 {[%emt 0:00:16]} 26. Qxh7+ {[%emt 0:00:14]} Kxh7 {[%emt 0:00:28]} 27. Rh3+ {[%emt 0:00:04]} Nh4 {[%emt 0:00:20]} 28. Rexh4+ {[%emt 0:00:17]} Kg6 {[%emt 0:00:10]} 29. Rg4+ {[%emt 0:00:11]} Kf6 {[%emt 0:00:39]} 30. Bg5+ {[%emt 0:00:13]} 1-0

[Event "44th Chess Olympiad Open 2022"]
[Site "Chennai"]
[Date "2022.08.09"]
[Round "11.32"]
[White "Mazara Ruiz, Adan Manuel"]
[Black "Santos, Jose Guilherme B Lim"]
[Result "1/2-1/2"]
[ECO "B51"]
[WhiteElo "2286"]
[BlackElo "2361"]
[Annotator "RC"]
[PlyCount "113"]
[EventDate "2022.07.29"]
[EventType "team-tourn"]
[EventCountry "IND"]
[SourceTitle "playchess.com"]
[Source "ChessBase"]
[SourceQuality "1"]
[WhiteTeam "Dominican Republic"]
[BlackTeam "Portugal"]
[WhiteTeamCountry "DOM"]
[BlackTeamCountry "POR"]
[TimeControl "40/5400+30:1800+30"]

1. e4 {[%emt 0:00:03]} c5 {[%emt 0:00:17]} 2. Nf3 {[%emt 0:00:08]} d6 {[%emt 0:00:05]} 3. Bb5+ {[%emt 0:00:07]} Nd7 {[%emt 0:00:07]} 4. c3 {[%emt 0:00:05]} Ngf6 {[%emt 0:00:13]} 5. Qe2 {[%emt 0:00:02]} a6 {[%emt 0:00:39]} 6. Ba4 {[%emt 0:00:05]} b5 {[%emt 0:00:06]} 7. Bc2 {[%emt 0:00:06]} Bb7 {[%emt 0:00:04]} 8. d4 {[%emt 0:00:09]} e6 {[%emt 0:00:15]} 9. O-O {[%emt 0:00:25]} Be7 {[%emt 0:00:14]} 10. Re1 {[%emt 0:05:49]} Qc7 {[%emt 0:01:27]} 11. a4 {[%emt 0:05:56]} O-O {[%emt 0:16:30]} 12. axb5 {[%emt 0:02:03]} axb5 {[%emt 0:02:07]} 13. Rxa8 {[%emt 0:00:02]} Rxa8 {[%emt 0:01:09]} 14. e5 {[%emt 0:00:43]} dxe5 {[%emt 0:12:06]} 15. dxe5 {[%emt 0:00:12]} Nd5 {[%emt 0:00:23]} 16. Na3 {[%emt 0:27:01]} Ba6 {[%emt 0:19:00]} 17. c4 {[%emt 0:12:45]} bxc4 {[%emt 0:00:57]} 18. Nxc4 {[%emt 0:00:07]} Nf8 {[%emt 0:00:22]} 19. Qe4 {[%emt 0:05:47]} Rd8 {[%emt 0:02:25]} 20. Bg5 {[%emt 0:11:29]} Bxc4 {[%emt 0:11:15]} 21. Bxe7 {[%emt 0:06:05]} Qxe7 {[%emt 0:00:12]} 22. Qxc4 {[%emt 0:00:02]} Rb8 {[%emt 0:00:11]} 23. Be4 {[%emt 0:00:50]} Rb4 {[%emt 0:04:52]} 24. Qc2 {[%emt 0:00:52]} Nb6 {[%emt 0:00:15]} 25. h4 {[%emt 0:02:02]} c4 {[%emt 0:04:23]} 26. Ra1 {[%emt 0:03:41]} Qc5 {[%emt 0:02:00]} 27. Ra7 {[%emt 0:07:03]} g6 {[%emt 0:08:49]} 28. h5 {[%emt 0:03:13]} Nbd7 {[%emt 0:02:48]} 29. Ra4 {[%emt 0:07:12]} Rxa4 {[%emt 0:02:31]} 30. Qxa4 {[%emt 0:00:02]} gxh5 {[%emt 0:00:14]} 31. Qa3 {[%emt 0:00:44]} Ng6 {[%emt 0:04:00]} 32. Qxc5 {[%emt 0:00:36]} Nxc5 {[%emt 0:00:04]} 33. Bxg6 {[%emt 0:00:05]} hxg6 {[%emt 0:00:02]} 34. Nd2 {[%emt 0:00:13]} Nd3 {[%emt 0:03:22]} 35. Nxc4 {[%emt 0:00:03]} g5 {[%emt 0:00:03]} 36. Kf1 {[%emt 0:00:22]} h4 {[%emt 0:00:53]} 37. Ke2 {[%emt 0:00:28]} g4 {[%emt 0:00:34]} 38. f3 {[%emt 0:01:51]} g3 {[%emt 0:00:58]} 39. Ne3 {[%emt 0:00:56]} Nxe5 {[%emt 0:01:05]} 40. f4 {[%emt 0:00:01]} Nc6 {[%emt 0:01:03]} 41. Nc2 {[%emt 0:02:11]} Kf8 {[%emt 0:06:22]} 42. b4 {[%emt 0:00:46]} Ke8 {[%emt 0:00:27]} 43. b5 {[%emt 0:04:25]} Ne7 {[%emt 0:05:35]} 44. Nd4 {[%emt 0:00:47]} Kd7 {[%emt 0:06:10]} 45. Nf3 {[%emt 0:01:37]} Ng6 {[%emt 0:04:56]} 46. Ke3 {[%emt 0:01:38]} f6 {[%emt 0:02:20]} 47. Ke4 {[%emt 0:00:08]} f5+ {[%emt 0:01:46]} 48. Ke3 {[%emt 0:00:22]} Kc7 {[%emt 0:01:33]} 49. Nd4 {[%emt 0:08:34]} Kb6 {[%emt 0:02:37]} 50. Nxe6 {[%emt 0:00:47]} Ne7 {[%emt 0:00:02]} 51. Nd4 {[%emt 0:05:21]} Kc5 {[%emt 0:00:58]} 52. Nf3 {[%emt 0:00:05]} Nd5+ {[%emt 0:00:08]} 53. Kd2 {[%emt 0:00:06]} h3 {[%emt 0:01:58]} 54. gxh3 {[%emt 0:00:20]} Nxf4 {[%emt 0:00:01]} 55. h4 {[%emt 0:01:22]} Kxb5 {[%emt 0:01:57]} 56. Ke3 {[%emt 0:00:30]} Nh5 {[%emt 0:01:50]} 57. Nd4+ {[%emt 0:00:53]} 1/2-1/2

[Event "44th Chess Olympiad Open 2022"]
[Site "Chennai"]
[Date "2022.08.09"]
[Round "11.32"]
[White "Arvelo Leo, Gian Carlo"]
[Black "Sousa, Andre Ventura"]
[Result "0-1"]
[ECO "D00"]
[WhiteElo "2176"]
[BlackElo "2420"]
[Annotator "RC"]
[PlyCount "76"]
[EventDate "2022.07.29"]
[EventType "team-tourn"]
[EventCountry "IND"]
[SourceTitle "playchess.com"]
[Source "ChessBase"]
[SourceQuality "1"]
[WhiteTeam "Dominican Republic"]
[BlackTeam "Portugal"]
[WhiteTeamCountry "DOM"]
[BlackTeamCountry "POR"]
[TimeControl "40/5400+30:1800+30"]

1. d4 {[%emt 0:00:03]} Nf6 {[%emt 0:00:04]} 2. Bg5 {[%emt 0:00:17]} d5 {[%emt 0:00:04]} 3. Bxf6 {[%emt 0:01:00]} gxf6 {[%emt 0:00:03]} 4. c4 {[%emt 0:00:56]} e5 {[%emt 0:00:04]} 5. e3 {[%emt 0:06:51]} exd4 {[%emt 0:00:05]} 6. Qxd4 {[%emt 0:04:13]} Nc6 {[%emt 0:03:47]} 7. Qxd5 {[%emt 0:06:39]} Be6 {[%emt 0:00:14]} 8. Qxd8+ {[%emt 0:00:24]} Rxd8 {[%emt 0:00:05]} 9. Nc3 {[%emt 0:00:13]} Ne5 {[%emt 0:06:20]} 10. Nf3 {[%emt 0:18:29]} Nxc4 {[%emt 0:10:19]} 11. Bxc4 {[%emt 0:03:33]} Bxc4 {[%emt 0:00:05]} 12. Rd1 {[%emt 0:00:41]} Rg8 {[%emt 0:02:49]} 13. Rxd8+ {[%emt 0:00:52]} Kxd8 {[%emt 0:00:05]} 14. g3 {[%emt 0:01:12]} Ke7 {[%emt 0:09:19]} 15. Kd2 {[%emt 0:04:34]} c5 {[%emt 0:10:27]} 16. Kc2 {[%emt 0:01:27]} Bg7 {[%emt 0:06:32]} 17. Nh4 {[%emt 0:07:58]} Ke6 {[%emt 0:15:06]} 18. b3 {[%emt 0:09:28]} Ba6 {[%emt 0:00:04]} 19. Rd1 {[%emt 0:00:13]} f5 {[%emt 0:05:36]} 20. Nd5 {[%emt 0:01:44]} Be5 {[%emt 0:02:05]} 21. Ng2 {[%emt 0:06:16]} Rd8 {[%emt 0:14:24]} 22. Ndf4+ {[%emt 0:03:11]} Ke7 {[%emt 0:00:32]} 23. Rxd8 {[%emt 0:00:09]} Kxd8 {[%emt 0:00:03]} 24. Nh4 {[%emt 0:00:13]} b5 {[%emt 0:01:51]} 25. Nxf5 {[%emt 0:00:44]} Bc8 {[%emt 0:00:34]} 26. Nh4 {[%emt 0:06:04]} Bf6 {[%emt 0:00:21]} 27. Nd3 {[%emt 0:03:50]} c4 {[%emt 0:02:35]} 28. bxc4 {[%emt 0:00:47]} bxc4 {[%emt 0:00:03]} 29. Nc5 {[%emt 0:03:55]} Kc7 {[%emt 0:01:07]} 30. Ne4 {[%emt 0:01:02]} Bxh4 {[%emt 0:03:31]} 31. gxh4 {[%emt 0:00:09]} Bf5 {[%emt 0:00:01]} 32. f3 {[%emt 0:00:22]} Bxe4+ {[%emt 0:01:45]} 33. fxe4 {[%emt 0:00:08]} Kd6 {[%emt 0:01:21]} 34. Kc3 {[%emt 0:01:44]} Ke5 {[%emt 0:00:11]} 35. Kxc4 {[%emt 0:00:31]} Kxe4 {[%emt 0:00:04]} 36. Kb5 {[%emt 0:00:58]} f5 {[%emt 0:00:04]} 37. Ka6 {[%emt 0:00:07]} Kxe3 {[%emt 0:00:04]} 38. Kxa7 {[%emt 0:00:05]} f4 {[%emt 0:00:01]} 0-1

[Event "44th Chess Olympiad Open 2022"]
[Site "Chennai"]
[Date "2022.08.09"]
[Round "11.33"]
[White "Ashiku, Franc"]
[Black "Steil-Antoni, Fiona"]
[Result "1-0"]
[ECO "D21"]
[WhiteElo "2422"]
[BlackElo "2218"]
[Annotator "RC"]
[PlyCount "35"]
[EventDate "2022.07.29"]
[EventType "team-tourn"]
[EventCountry "IND"]
[SourceTitle "playchess.com"]
[Source "ChessBase"]
[SourceQuality "1"]
[WhiteTeam "Albania"]
[BlackTeam "Luxembourg"]
[WhiteTeamCountry "ALB"]
[BlackTeamCountry "LUX"]
[TimeControl "40/5400+30:1800+30"]

1. d4 {[%emt 0:00:05]} d5 {[%emt 0:00:06]} 2. c4 {[%emt 0:00:15]} dxc4 {[%emt 0:00:08]} 3. Nf3 {[%emt 0:00:25]} c5 {[%emt 0:00:24]} 4. e3 {[%emt 0:01:21]} cxd4 {[%emt 0:00:19]} 5. Bxc4 {[%emt 0:00:38]} Qc7 {[%emt 0:00:24]} 6. Qb3 {[%emt 0:02:59]} e6 {[%emt 0:00:22]} 7. O-O {[%emt 0:05:46]} Nf6 {[%emt 0:03:20]} 8. Nxd4 {[%emt 0:05:45]} a6 {[%emt 0:02:48]} 9. Nc3 {[%emt 0:10:06]} Be7 {[%emt 0:02:55]} 10. Bd2 {[%emt 0:03:33]} Nc6 {[%emt 0:04:29]} 11. Nxc6 {[%emt 0:02:59]} Qxc6 {[%emt 0:07:33]} 12. Rac1 {[%emt 0:00:34]} O-O {[%emt 0:02:25]} 13. Be2 {[%emt 0:02:23]} Ne4 {[%emt 0:04:18]} 14. Nxe4 {[%emt 0:04:59]} Qxe4 {[%emt 0:00:11]} 15. Bf3 {[%emt 0:00:20]} Qh4 {[%emt 0:02:54]} 16. Rc4 {[%emt 0:02:14]} Qh6 {[%emt 0:02:07]} 17. Bb4 {[%emt 0:05:59]} Qf6 {[%emt 0:06:49]} 18. Rf4 {[%emt 0:00:44]} 1-0

[Event "44th Chess Olympiad Open 2022"]
[Site "Chennai"]
[Date "2022.08.09"]
[Round "11.33"]
[White "Berend, Elvira"]
[Black "Pasko, Llambi"]
[Result "0-1"]
[ECO "C54"]
[WhiteElo "2333"]
[BlackElo "2418"]
[Annotator "RC"]
[PlyCount "82"]
[EventDate "2022.07.29"]
[EventType "team-tourn"]
[EventCountry "IND"]
[SourceTitle "playchess.com"]
[Source "ChessBase"]
[SourceQuality "1"]
[WhiteTeam "Luxembourg"]
[BlackTeam "Albania"]
[WhiteTeamCountry "LUX"]
[BlackTeamCountry "ALB"]
[TimeControl "40/5400+30:1800+30"]

1. e4 {[%emt 0:00:05]} e5 {[%emt 0:00:07]} 2. Nf3 {[%emt 0:00:57]} Nc6 {[%emt 0:00:06]} 3. Bc4 {[%emt 0:00:26]} Bc5 {[%emt 0:00:35]} 4. O-O {[%emt 0:06:51]} Nf6 {[%emt 0:00:07]} 5. d3 {[%emt 0:00:02]} d6 {[%emt 0:00:51]} 6. c3 {[%emt 0:00:42]} O-O {[%emt 0:01:19]} 7. a4 {[%emt 0:00:07]} a6 {[%emt 0:00:23]} 8. h3 {[%emt 0:08:58]} h6 {[%emt 0:01:02]} 9. Qe2 {[%emt 0:01:09]} Re8 {[%emt 0:06:45]} 10. Be3 {[%emt 0:01:59]} Bxe3 {[%emt 0:01:03]} 11. fxe3 {[%emt 0:00:33]} Be6 {[%emt 0:00:21]} 12. Bxe6 {[%emt 0:01:13]} Rxe6 {[%emt 0:02:04]} 13. c4 {[%emt 0:04:18]} Nb4 {[%emt 0:01:00]} 14. Nc3 {[%emt 0:01:37]} c6 {[%emt 0:01:37]} 15. Rad1 {[%emt 0:06:02]} d5 {[%emt 0:06:18]} 16. cxd5 {[%emt 0:09:03]} cxd5 {[%emt 0:00:08]} 17. d4 {[%emt 0:02:07]} exd4 {[%emt 0:03:50]} 18. Nxd4 {[%emt 0:02:20]} Re8 {[%emt 0:01:41]} 19. exd5 {[%emt 0:01:52]} Nbxd5 {[%emt 0:02:41]} 20. Nf5 {[%emt 0:01:09]} Re5 {[%emt 0:01:27]} 21. Qf3 {[%emt 0:03:29]} Kh7 {[%emt 0:01:55]} 22. Qg3 {[%emt 0:06:27]} Rxf5 {[%emt 0:00:05]} 23. Rxf5 {[%emt 0:00:05]} Nxc3 {[%emt 0:00:03]} 24. Rxd8 {[%emt 0:01:34]} Ne2+ {[%emt 0:00:03]} 25. Kf2 {[%emt 0:00:18]} Nxg3 {[%emt 0:00:05]} 26. Rxa8 {[%emt 0:00:08]} Nxf5 {[%emt 0:00:16]} 27. Kf3 {[%emt 0:00:58]} Nd6 {[%emt 0:00:37]} 28. Kf4 {[%emt 0:00:58]} Nc4 {[%emt 0:01:55]} 29. b3 {[%emt 0:04:34]} Na5 {[%emt 0:01:42]} 30. Rb8 {[%emt 0:01:54]} Nd7 {[%emt 0:00:36]} 31. Rd8 {[%emt 0:00:23]} Nc5 {[%emt 0:00:05]} 32. Rd1 {[%emt 0:04:51]} Naxb3 {[%emt 0:02:01]} 33. Rb1 {[%emt 0:01:19]} Nd2 {[%emt 0:01:51]} 34. Rd1 {[%emt 0:00:33]} Nc4 {[%emt 0:00:04]} 35. Ra1 {[%emt 0:01:20]} b5 {[%emt 0:03:17]} 36. axb5 {[%emt 0:00:14]} axb5 {[%emt 0:00:04]} 37. Kf3 {[%emt 0:00:16]} b4 {[%emt 0:01:28]} 38. Ke2 {[%emt 0:00:44]} b3 {[%emt 0:00:21]} 39. Ra8 {[%emt 0:03:31]} b2 {[%emt 0:02:53]} 40. Rb8 {[%emt 0:00:05]} Ne4 {[%emt 0:01:13]} 41. Kd3 {[%emt 0:30:28]} Ned2 {[%emt 0:30:06]} 0-1

[Event "44th Chess Olympiad Open 2022"]
[Site "Chennai"]
[Date "2022.08.09"]
[Round "11.33"]
[White "Veleshnja, Zino"]
[Black "Schartz, Alain"]
[Result "1-0"]
[ECO "D02"]
[WhiteElo "2263"]
[BlackElo "2086"]
[Annotator "RC"]
[PlyCount "69"]
[EventDate "2022.07.29"]
[EventType "team-tourn"]
[EventCountry "IND"]
[SourceTitle "playchess.com"]
[Source "ChessBase"]
[SourceQuality "1"]
[WhiteTeam "Albania"]
[BlackTeam "Luxembourg"]
[WhiteTeamCountry "ALB"]
[BlackTeamCountry "LUX"]
[TimeControl "40/5400+30:1800+30"]

1. d4 {[%emt 0:00:03]} d5 {[%emt 0:00:07]} 2. Bf4 {[%emt 0:00:07]} Nf6 {[%emt 0:00:59]} 3. e3 {[%emt 0:00:07]} e6 {[%emt 0:00:25]} 4. Nd2 {[%emt 0:00:23]} c5 {[%emt 0:01:46]} 5. c3 {[%emt 0:00:04]} Nc6 {[%emt 0:00:38]} 6. Ngf3 {[%emt 0:00:06]} cxd4 {[%emt 0:06:08]} 7. exd4 {[%emt 0:00:07]} Nh5 {[%emt 0:03:21]} 8. Be3 {[%emt 0:01:07]} Bd6 {[%emt 0:04:48]} 9. Ne5 {[%emt 0:01:08]} g6 {[%emt 0:02:46]} 10. Bb5 {[%emt 0:03:57]} Bd7 {[%emt 0:02:32]} 11. Nxd7 {[%emt 0:01:46]} Qxd7 {[%emt 0:04:49]} 12. g3 {[%emt 0:00:56]} a6 {[%emt 0:03:18]} 13. Be2 {[%emt 0:03:13]} Ng7 {[%emt 0:00:54]} 14. f4 {[%emt 0:05:17]} b5 {[%emt 0:04:16]} 15. O-O {[%emt 0:00:22]} h5 {[%emt 0:04:02]} 16. Nf3 {[%emt 0:01:17]} O-O {[%emt 0:06:28]} 17. Ne5 {[%emt 0:00:56]} Nxe5 {[%emt 0:00:54]} 18. fxe5 {[%emt 0:00:22]} Be7 {[%emt 0:00:43]} 19. Bh6 {[%emt 0:03:46]} Rfb8 {[%emt 0:05:31]} 20. Qd2 {[%emt 0:07:19]} b4 {[%emt 0:12:14]} 21. g4 {[%emt 0:09:18]} hxg4 {[%emt 0:04:54]} 22. Bxg4 {[%emt 0:00:27]} bxc3 {[%emt 0:00:35]} 23. bxc3 {[%emt 0:01:17]} Nf5 {[%emt 0:00:56]} 24. Rf3 {[%emt 0:02:44]} Nxh6 {[%emt 0:10:55]} 25. Qxh6 {[%emt 0:00:25]} Bf8 {[%emt 0:00:16]} 26. Qh4 {[%emt 0:00:34]} Qd8 {[%emt 0:01:55]} 27. Qg3 {[%emt 0:02:30]} Rb6 {[%emt 0:03:40]} 28. Raf1 {[%emt 0:00:21]} Ra7 {[%emt 0:00:32]} 29. h4 {[%emt 0:02:05]} Bg7 {[%emt 0:01:00]} 30. Bh3 {[%emt 0:04:11]} Qb8 {[%emt 0:06:21]} 31. h5 {[%emt 0:01:59]} gxh5 {[%emt 0:00:59]} 32. Qg5 {[%emt 0:00:49]} Rb1 {[%emt 0:03:34]} 33. Rg3 {[%emt 0:00:21]} Rxf1+ {[%emt 0:00:21]} 34. Bxf1 {[%emt 0:00:08]} Qf8 {[%emt 0:00:48]} 35. Bd3 {[%emt 0:00:13]} 1-0

[Event "44th Chess Olympiad Open 2022"]
[Site "Chennai"]
[Date "2022.08.09"]
[Round "11.33"]
[White "Gengler, Pierre"]
[Black "Mehmeti, Dritan"]
[Result "0-1"]
[ECO "C00"]
[WhiteElo "2194"]
[BlackElo "2371"]
[Annotator "RC"]
[PlyCount "118"]
[EventDate "2022.07.29"]
[EventType "team-tourn"]
[EventCountry "IND"]
[SourceTitle "playchess.com"]
[Source "ChessBase"]
[SourceQuality "1"]
[WhiteTeam "Luxembourg"]
[BlackTeam "Albania"]
[WhiteTeamCountry "LUX"]
[BlackTeamCountry "ALB"]
[TimeControl "40/5400+30:1800+30"]

1. g3 {[%emt 0:00:01]} Nf6 {[%emt 0:00:07]} 2. Bg2 {[%emt 0:00:05]} e6 {[%emt 0:00:23]} 3. d3 {[%emt 0:00:06]} d5 {[%emt 0:00:10]} 4. Nd2 {[%emt 0:00:09]} Be7 {[%emt 0:00:16]} 5. e4 {[%emt 0:00:05]} c5 {[%emt 0:00:24]} 6. Ne2 {[%emt 0:01:57]} Nc6 {[%emt 0:00:17]} 7. O-O {[%emt 0:00:05]} O-O {[%emt 0:00:21]} 8. b3 {[%emt 0:00:35]} b6 {[%emt 0:06:09]} 9. Bb2 {[%emt 0:02:14]} Bb7 {[%emt 0:00:23]} 10. Nf4 {[%emt 0:00:41]} d4 {[%emt 0:07:17]} 11. Nh5 {[%emt 0:08:26]} Nd7 {[%emt 0:03:54]} 12. g4 {[%emt 0:03:29]} g6 {[%emt 0:03:50]} 13. Ng3 {[%emt 0:00:05]} e5 {[%emt 0:00:31]} 14. Bc1 {[%emt 0:07:07]} Bg5 {[%emt 0:02:50]} 15. Nf3 {[%emt 0:00:43]} Bf4 {[%emt 0:05:17]} 16. Bd2 {[%emt 0:06:06]} Qe7 {[%emt 0:03:13]} 17. Qc1 {[%emt 0:00:12]} Bxd2 {[%emt 0:01:01]} 18. Qxd2 {[%emt 0:00:12]} Nd8 {[%emt 0:00:27]} 19. h4 {[%emt 0:09:02]} Ne6 {[%emt 0:00:56]} 20. Ne2 {[%emt 0:07:56]} Rae8 {[%emt 0:11:56]} 21. Ng5 {[%emt 0:01:40]} Nxg5 {[%emt 0:05:02]} 22. hxg5 {[%emt 0:05:31]} Bc8 {[%emt 0:05:04]} 23. f3 {[%emt 0:01:35]} f6 {[%emt 0:01:40]} 24. gxf6 {[%emt 0:00:32]} Nxf6 {[%emt 0:01:50]} 25. Rf2 {[%emt 0:01:15]} Kg7 {[%emt 0:03:15]} 26. Raf1 {[%emt 0:00:31]} Rf7 {[%emt 0:04:29]} 27. Ng3 {[%emt 0:02:21]} Ref8 {[%emt 0:01:43]} 28. Qg5 {[%emt 0:01:25]} h6 {[%emt 0:01:09]} 29. Qd2 {[%emt 0:01:40]} Nh7 {[%emt 0:00:22]} 30. Ne2 {[%emt 0:03:04]} Qh4 {[%emt 0:03:14]} 31. Qe1 {[%emt 0:02:58]} Ng5 {[%emt 0:01:45]} 32. f4 {[%emt 0:02:00]} exf4 {[%emt 0:01:00]} 33. Rxf4 {[%emt 0:00:21]} Qxe1 {[%emt 0:00:28]} 34. Rxf7+ {[%emt 0:00:17]} Rxf7 {[%emt 0:00:06]} 35. Rxe1 {[%emt 0:00:04]} Bxg4 {[%emt 0:00:10]} 36. Ng3 {[%emt 0:00:43]} h5 {[%emt 0:01:45]} 37. Rb1 {[%emt 0:00:54]} h4 {[%emt 0:01:20]} 38. Nf1 {[%emt 0:00:39]} Ne6 {[%emt 0:04:31]} 39. Nh2 {[%emt 0:06:49]} Bh5 {[%emt 0:00:49]} 40. Re1 {[%emt 0:01:56]} g5 {[%emt 0:02:54]} 41. Bh3 {[%emt 0:30:11]} Nf4 {[%emt 0:30:37]} 42. Bg4 {[%emt 0:00:04]} Kh6 {[%emt 0:01:54]} 43. e5 {[%emt 0:03:22]} Bxg4 {[%emt 0:03:32]} 44. Nxg4+ {[%emt 0:00:04]} Kh5 {[%emt 0:02:40]} 45. Nf6+ {[%emt 0:00:46]} Kg6 {[%emt 0:00:07]} 46. Ne4 {[%emt 0:01:12]} Re7 {[%emt 0:00:36]} 47. Nd6 {[%emt 0:00:16]} Nd5 {[%emt 0:02:31]} 48. Re4 {[%emt 0:01:43]} Nc3 {[%emt 0:02:09]} 49. Re1 {[%emt 0:00:09]} Nxa2 {[%emt 0:03:08]} 50. Nc8 {[%emt 0:00:17]} Re6 {[%emt 0:00:14]} 51. Nxa7 {[%emt 0:00:07]} Nb4 {[%emt 0:00:19]} 52. Re2 {[%emt 0:00:41]} Nd5 {[%emt 0:02:17]} 53. Nc8 {[%emt 0:00:34]} Ne3 {[%emt 0:00:41]} 54. c4 {[%emt 0:00:19]} g4 {[%emt 0:00:40]} 55. Rf2 {[%emt 0:00:23]} g3 {[%emt 0:01:37]} 56. Rf6+ {[%emt 0:02:26]} Rxf6 {[%emt 0:00:07]} 57. exf6 {[%emt 0:00:02]} h3 {[%emt 0:00:44]} 58. Nxb6 {[%emt 0:00:23]} h2+ {[%emt 0:00:00]} 59. Kh1 {[%emt 0:00:11]} Ng4 {[%emt 0:00:00]} 0-1